Cogmind - Beta 9.2 @@@ ROGUE MODE // 2019.12.01 @ 04:22:07 Player: Demise Result: Destroyed by G-47 Trooper with Particle Gun Performance ------------- Evolutions (1) 500 Regions Visited (5) 1000 Robots Destroyed (33) 165 Value Destroyed (453) 453 Prototype IDs (0) 0 Alien Tech Used (0) 0 Bonus (707) 707 TOTAL SCORE: 2825 Bonus ------- Follower Combat Kills 7 Entered Garrisons 200 Used RIF Installer 500 Cogmind --------- Core Integrity 0/400 Matter 300/300 Energy 99/100 System Corruption 0% Temperature Cool (9) Movement Core (50) Location -9/Garrison Parts ------- > --- POWER (1) -------- (None) > --- PROPULSION (2) --- (None) > --- UTILITY (4) ------ Signal Interpreter > --- WEAPON (2) ------- (None) > --- INVENTORY (4) ---- Aluminum Leg Wheel High-capacity Storage Unit Light Armor Plating Peak State ------------ > --- POWER ------------ Ion Engine > --- PROPULSION ------- Aluminum Leg Compact Wheel > --- UTILITY ---------- High-capacity Storage Unit Sensor Array Signal Interpreter Improved Terrain Scanner > --- WEAPON ----------- Rocket Launcher Mace > --- INVENTORY -------- Aluminum Leg High-capacity Storage Unit Medium Matter Pod Structural Scanner Light Armor Plating Beam Cannon Light Assault Rifle Mining Laser [Rating: 12] Favorites ----------- Power Ion Engine Engine Ion Engine Propulsion Aluminum Leg Leg Aluminum Leg Wheel Compact Wheel Flight Unit Flight Unit Utility Sensor Array Device Sensor Array Storage High-capacity Storage Unit Processor Signal Interpreter Weapon Mace Energy Gun Small Laser Energy Cannon Beam Cannon Ballistic Gun Light Assault Rifle Launcher Rocket Launcher Special Weapon Mining Laser Impact Weapon Mace Build | -11 -10 -10 -9 -9 -9 ------- Run | Scr Mat Min Mat Sto Gar Slots Evolved 2 | . . . 2 . . Power . | . . . . . . Propulsion . | . . . . . . Utility 2 | . . . 2 . . Weapon . | . . . . . . Parts Attached 45 | 9 25 6 5 . . Power 3 | 1 2 . . . . Engine 3 | 1 2 . . . . Core . | . . . . . . Reactor . | . . . . . . Propulsion 14 | 4 8 1 1 . . Treads . | . . . . . . Leg 5 | . 5 . . . . Wheel 6 | 4 . 1 1 . . Hover . | . . . . . . Flight 3 | . 3 . . . . Utility 12 | 2 7 1 2 . . Device 7 | 2 4 . 1 . . Storage 3 | . 2 1 . . . Processor 2 | . 1 . 1 . . Hackware . | . . . . . . Protection . | . . . . . . Artifact . | . . . . . . Weapon 16 | 2 8 4 2 . . Energy Gun 4 | 1 2 1 . . . Energy Cannon 2 | . . 1 1 . . Ballistic Gun 6 | 1 4 . 1 . . Ballistic Cannon . | . . . . . . Launcher 1 | . . 1 . . . Special Weapon 1 | . 1 . . . . Impact Weapon 2 | . 1 1 . . . Slashing Weapon . | . . . . . . Piercing Weapon . | . . . . . . Special Melee Weapon . | . . . . . . Unidentified Prototypes . | . . . . . . Parts Lost 9 | . 4 . 5 . . Power 1 | . . . 1 . . Propulsion 2 | . 2 . . . . Utility 2 | . . . 2 . . Weapon 4 | . 2 . 2 . . Highest Loss Streak 4 | . 2 . 4 . . Average Slot Usage (%) 88 | . 89 100 73 11 11 Engine 12 | . 14 14 8 . . Leg 16 | . 10 24 6 . . Wheel 6 | . 10 3 10 . . Flight 2 | . 6 . . . . Device 19 | . 22 21 13 . . Storage 4 | . 1 6 8 . . Processor 2 | . 1 . 10 11 11 Energy Gun 4 | . 4 6 . . . Energy Cannon 1 | . . 2 3 . . Ballistic Gun 5 | . 15 . 2 . . Launcher 3 | . . 5 5 . . Impact Weapon 8 | . . 14 5 . . Naked Turns . | . . . . . . Heaviest Build 45 | 10 10 44 45 . . Greatest Support 32 | 32 20 20 26 3 3 Greatest Overweight (x) 2 | . 1 2 2 . . Average Overweight (x) . | . . . . . . Largest Inventory Capacity 12 | 4 4 12 12 4 4 Average Capacity 6 | 4 4 7 10 4 4 Most Carried 11 | 4 4 10 11 4 4 Average Carried 5 | 3 3 5 7 4 4 Final Capacity 12 | 4 4 12 4 4 4 Final Carried 10 | 4 4 10 4 4 4 Class Distribution -------------------- 68% | Mutant 28% | Scavenger-Mutant Dominant Class ---------------- Scavenger-Mutant | -10/Materials Mutant | -10/Mines Mutant | -9/Materials Mutant | -9/Storage Mutant | -9/Garrison Resources | -11 -10 -10 -9 -9 -9 ----------- Run | Scr Mat Min Mat Sto Gar Matter Collected 821 | 327 245 151 98 . . Remotely 234 | 234 . . . . . Salvage Created 754 | 248 252 21 233 . . Parts 74 | 21 19 8 26 . . Haulers Intercepted 1 | . . . 1 . . Recyclers Shooed . | . . . . . . Parts Field Recycled . | . . . . . . Retrieved Matter . | . . . . . . Parts Self-Destructed . | . . . . . . Prevented . | . . . . . . Kills | -11 -10 -10 -9 -9 -9 ------- Run | Scr Mat Min Mat Sto Gar Combat Hostiles Destroyed 19 | . 10 3 6 . . Guns 10 | . 10 . . . . Cannons 2 | . . . 2 . . AOE 7 | . . 3 4 . . Classes Destroyed 8 | 3 2 . 3 . . Worker 3 | 2 . . 1 . . Builder 1 | . . . 1 . . Tunneler 7 | 5 . 2 . . . Hauler 1 | . . . 1 . . Recycler 2 | 1 . . 1 . . Swarmer 12 | . 6 3 3 . . Grunt 6 | . 4 . 2 . . Sentry 1 | . . . 1 . . Best Kill Streak 9 | 5 5 3 9 . . Combat Bots Only 6 | . 5 3 6 . . Max Kills in Single Turn 3 | 1 1 2 3 . . Gunslinging . | . . . . . . Exploded 1 | . . 1 1 . . Melee . | . . . . . . Uniques/NPCs Destroyed . | . . . . . . Combat | -11 -10 -10 -9 -9 -9 -------- Run | Scr Mat Min Mat Sto Gar Damage Taken 1335 | . 597 126 462 53 97 Core 555 | . 112 29 264 53 97 Absorbed by Shields . | . . . . . . Core Remaining (%) 71 | 100 . 43 . . . Volleys Fired 68 | 18 32 8 10 . . Largest 2 | 2 2 1 2 . . Hottest 100 | 70 100 33 80 . . Shots Fired 109 | 36 50 8 15 . . Gun 88 | 36 47 . 5 . . Cannon 6 | . . . 6 . . Launcher 12 | . . 8 4 . . Special 3 | . 3 . . . . Kinetic 57 | 18 34 . 5 . . Thermal 40 | 18 16 . 6 . . Explosive 12 | . . 8 4 . . Electromagnetic . | . . . . . . Robot Hit Streak 10 | 5 10 2 3 . . Robot Miss Streak 4 | 2 4 3 1 . . Penetration Max . | . . . . . . Secondary Targets . | . . . . . . Shots Hit Robots 67 | 20 36 3 8 . . Core Hits 48 | 10 17 6 15 . . Critical Hits . | . . . . . . Critical Kills . | . . . . . . Critical Parts Destroyed . | . . . . . . Melee Attacks 10 | . 4 6 . . . Impact 10 | . 4 6 . . . Slashing . | . . . . . . Piercing . | . . . . . . Sneak Attacks . | . . . . . . Combat Hostiles . | . . . . . . Follow-up Attacks . | . . . . . . Damage Inflicted 1410 | 210 328 407 465 . . Guns 553 | 210 328 . 15 . . Cannons 72 | . . . 72 . . Explosions 775 | . . 407 368 . . Melee . | . . . . . . Ramming 10 | . . . 10 . . Kinetic 302 | 59 228 . 15 . . Thermal 323 | 151 100 . 72 . . Explosive 775 | . . 407 368 . . Electromagnetic . | . . . . . . Impact . | . . . . . . Slashing . | . . . . . . Piercing . | . . . . . . Highest Corruption 1 | . 1 1 . . . Average Corruption 1 | . 1 1 . . . Corruption Purged . | . . . . . . Effects 4 | . 1 3 . . . Message Errors 1 | . . 1 . . . Energy Discharges 1 | . . 1 . . . Data Loss (minor) 2 | . 1 1 . . . Overload Shots . | . . . . . . Overflow Damage 80 | . . 60 20 . . Projectiles . | . . . . . . Explosions 80 | . . 60 20 . . Melee . | . . . . . . Knockbacks . | . . . . . . Impact . | . . . . . . Kinetic . | . . . . . . Secondary . | . . . . . . Self-Inflicted Damage 96 | . . 64 32 . . Shots 3 | . . 2 1 . . Rammed 1 | . . . 1 . . Targets Rammed 1 | . . . 1 . . Kicked . | . . . . . . Crushed . | . . . . . . Highest Temperature 160 | 160 134 . 65 . . Average Temperature 46 | 58 41 . 27 . . Received Heat Transfer 312 | . 183 . 99 6 24 Siege Activations . | . . . . . . Robots Corrupted . | . . . . . . Combat Hostiles . | . . . . . . Parts Fried . | . . . . . . Impact Corruptions . | . . . . . . Robots Melted . | . . . . . . Combat Hostiles . | . . . . . . Parts Melted 1 | . 1 . . . . Heat Transferred 888 | 444 296 . 148 . . Parts Sabotaged . | . . . . . . Parts Stolen . | . . . . . . Parts Stripped . | . . . . . . Power Chain Reactions . | . . . . . . Missiles Intercepted . | . . . . . . Alert | -11 -10 -10 -9 -9 -9 ------- Run | Scr Mat Min Mat Sto Gar Peak Influence 348 | 40 348 84 148 83 56 Average Influence 89 | 18 180 52 81 65 56 Maximum Alert Level 1 | . 1 . . . . Low Security (%) 88 | 100 58 100 100 100 100 Level 1 11 | . 41 . . . . Level 2 . | . . . . . . Level 3 . | . . . . . . Level 4 . | . . . . . . Level 5 . | . . . . . . High Security . | . . . . . . Max Security . | . . . . . . Squads Dispatched 5 | . 3 . 1 1 . Investigation 2 | . 2 . . . . Extermination . | . . . . . . Reinforcement 3 | . 1 . 1 1 . Assault . | . . . . . . Garrison . | . . . . . . Intercept . | . . . . . . Construction Impeded . | . . . . . . Haulers Reinforced . | . . . . . . Stealth | -11 -10 -10 -9 -9 -9 --------- Run | Scr Mat Min Mat Sto Gar Distress Signals 2 | . 2 . . . . Communications Jammed . | . . . . . . Distress Signals . | . . . . . . Times Spotted 47 | . 23 3 11 5 5 Peak Tracking Total 8 | . 8 3 5 5 5 Tactical Retreats 3 | . 2 . . . 1 Traps | -11 -10 -10 -9 -9 -9 ------- Run | Scr Mat Min Mat Sto Gar Traps Triggered 4 | . 1 . . 1 2 Indirectly . | . . . . . . Trap Hack Attempts . | . . . . . . Triggered . | . . . . . . Disarmed . | . . . . . . Reprogrammed . | . . . . . . Reused . | . . . . . . Traps Extracted . | . . . . . . Installed . | . . . . . . Triggered . | . . . . . . Machines | -11 -10 -10 -9 -9 -9 ---------- Run | Scr Mat Min Mat Sto Gar Machines Disabled . | . . . . . . Max in Single Turn . | . . . . . . Machines Sabotaged . | . . . . . . Garrisons Compromised . | . . . . . . Overloaded Fab Kills . | . . . . . . Fab Network Shutdowns . | . . . . . . Hacking | -11 -10 -10 -9 -9 -9 --------- Run | Scr Mat Min Mat Sto Gar Machines Accessed 7 | . 5 1 . 1 . Terminals 5 | . 4 1 . . . Fabricators . | . . . . . . Repair Stations 1 | . 1 . . . . Recycling Units . | . . . . . . Scanalyzers . | . . . . . . Garrison Access 1 | . . . . 1 . Total Hacks 19 | . 16 2 . 1 . Successful 10 | . 7 2 . 1 . Failed 9 | . 9 . . . . Catastrophic 4 | . 4 . . . . Database Lockouts . | . . . . . . Manual 14 | . 14 . . . . Terminals 16 | . 14 2 . . . Fabricators . | . . . . . . Repair Stations 2 | . 2 . . . . Recycling Units . | . . . . . . Scanalyzers . | . . . . . . Garrison Access 1 | . . . . 1 . Terminal Hacks 4 | . 2 2 . . . Part Schematic 1 | . 1 . . . . Branch Access Points 1 | . 1 . . . . Alert Level 1 | . . 1 . . . Dispatch Records 1 | . . 1 . . . Fabricator Hacks . | . . . . . . Repair Station Hacks 2 | . 2 . . . . Scan Component 1 | . 1 . . . . Repair 1 | . 1 . . . . Recycling Unit Hacks . | . . . . . . Scanalyzer . | . . . . . . Garrison Access Hacks 1 | . . . . 1 . Unlock Access 1 | . . . . 1 . Unauthorized Hacks 9 | . 9 . . . . Terminals 3 | . 3 . . . . Botnet 3 | . 3 . . . . Fabricators . | . . . . . . Repair Stations . | . . . . . . Recycling Units . | . . . . . . Scanalyzers . | . . . . . . Garrison Access . | . . . . . . Data Cores Recovered . | . . . . . . Used . | . . . . . . Hacking Detections 6 | . 5 1 . . . Full Trace Events 2 | . 2 . . . . Feedback Events 1 | . 1 . . . . Corruption 1 | . 1 . . . . Feedback Blocked . | . . . . . . Robot Schematics Acquired . | . . . . . . Robots Built . | . . . . . . Matter . | . . . . . . Time . | . . . . . . Total Robot Build Rating . | . . . . . . Part Schematics Acquired 1 | . 1 . . . . Parts Built . | . . . . . . Matter . | . . . . . . Time . | . . . . . . Total Part Build Rating . | . . . . . . Parts Repaired 1 | . 1 . . . . Time 32 | . 32 . . . . Parts Recycled . | . . . . . . Recycled Matter . | . . . . . . Retrieved Matter . | . . . . . . Retrieved Components . | . . . . . . Parts Scanalyzed . | . . . . . . Part Schematics Acquired . | . . . . . . Parts Damaged . | . . . . . . Bothacking | -11 -10 -10 -9 -9 -9 ------------ Run | Scr Mat Min Mat Sto Gar Used RIF Installer 1 | . . . . . 1 Robots Hacked . | . . . . . . Non-combat . | . . . . . . Combat . | . . . . . . Robot Hacks Applied . | . . . . . . Relay Couplers Released . | . . . . . . Robots Rewired . | . . . . . . Allies Hacked . | . . . . . . Hacks Repelled . | . . . . . . Allies | -11 -10 -10 -9 -9 -9 -------- Run | Scr Mat Min Mat Sto Gar Total Allies 3 | . . 3 . . . Largest Group 3 | . . 3 3 . . Highest-Rated Group 40 | . . 40 40 . . Highest-Rated Ally 16 | . . 16 16 . . Total Orders . | . . . . . . Ally Attacks 5 | . . . 5 . . Total Damage 16 | . . . 16 . . Kills 1 | . . . 1 . . Allies Corrupted . | . . . . . . Allies Melted . | . . . . . . Intel | -11 -10 -10 -9 -9 -9 ------- Run | Scr Mat Min Mat Sto Gar Robot Analysis Total . | . . . . . . Derelict Logs Recovered 1 | . . 1 . . . Drone Launches . | . . . . . . Drone Recoveries . | . . . . . . Exploration | -11 -10 -10 -9 -9 -9 ------------- Run | Scr Mat Min Mat Sto Gar Turns Passed 1727 | 154 504 830 125 29 85 Spaces Moved 1347 | 83 428 568 106 57 105 Core 220 | 4 . . 54 57 105 Treads . | . . . . . . Legs 544 | . 135 409 . . . Wheels 398 | 79 108 159 52 . . Hover . | . . . . . . Flight 185 | . 185 . . . . Fastest Speed 37 | 50 37 120 50 50 50 Average Speed 96 | 96 74 129 83 50 50 Slowest Speed 180 | 100 125 180 120 50 50 Overloaded Moves . | . . . . . . Propulsion Burnouts . | . . . . . . Robots Hopped 1 | . 1 . . . . Cave-ins Triggered . | . . . . . . Exploration Rate (%) 37 | 4 63 98 14 15 33 Regions Visited 5 Branch Regions 2 Pre-discovered Areas 1 | . . 1 . . . Known Exits Taken 3 | . 1 . 1 1 . Unknown Exits Taken 2 | 1 . 1 . . . Scrap Searched 1 | . . 1 . . . Spaces Dug 6 | . 3 3 . . . Terrain Destroyed 118 | . 4 88 26 . . Melee 4 | . 1 3 . . . Projectile 3 | . 3 . . . . AOE 111 | . . 85 26 . . Actions | -11 -10 -10 -9 -9 -9 --------- Run | Scr Mat Min Mat Sto Gar Total 1647 | 124 558 644 127 57 137 Wait 101 | . 49 48 2 . 2 Move 1341 | 82 425 567 105 57 105 Hop 1 | . 1 . . . . Pick Up 19 | 9 5 5 . . . Fast Attach 28 | 8 15 4 1 . . Attach 5 | 1 2 . 2 . . Detach 6 | . 2 1 3 . . Swap 12 | . 8 2 2 . . Drop 25 | 6 15 3 1 . . Fire 68 | 18 32 8 10 . . Melee 10 | . 4 6 . . . Ram 1 | . . . 1 . . Kick . | . . . . . . Crush . | . . . . . . Escape Stasis 30 | . . . . . 30 Rewire . | . . . . . . Trap . | . . . . . . Miscellaneous . | . . . . . . Route ------- -11/Scrapyard -10/Materials (discovered 3 exits: [*Mat x2] / *Min) -10/Mines (discovered 2 exits: [*Mat x2]) -9/Materials (discovered 4 exits: Mat x2 / Min / *Sto) -9/Storage -9/Garrison (discovered 1 exit: *Mat) History --------- Turn | Location | Event 9 | -11/Scrapyard | Discovered new exit (range 16) 155 | -11/Scrapyard | Entered Materials 370 | -10/Materials | Discovered new exit (range 9) 375 | -10/Materials | Identified exit to Mines 469 | -10/Materials | Repaired Imp. Terrain Scanner 540 | -10/Materials | Discovered new exit (range 5) 659 | -10/Materials | Entered Mines 662 | -10/Mines | Learned location of Storage (-9) 784 | -10/Mines | Discovered new exit (range 12) 886 | -10/Mines | Build established: Mutant 1168 | -10/Mines | Core integrity fell below 50% 1354 | -10/Mines | Assisted by bots powering up and referring to "LRC-V3" 1473 | -10/Mines | Learned 8 Materials zone layouts 1479 | -10/Mines | Discovered new exit (range 10) 1489 | -10/Mines | Entered Materials 1489 | -9/Materials | Accompanied by 3 allies 1489 | -9/Materials | Evolved 2 slots: Utility x2 1490 | -9/Materials | Identified exit to Storage 1490 | -9/Materials | Identified exit to Materials 1490 | -9/Materials | Identified exit to Mines 1611 | -9/Materials | Core integrity fell below 50% 1614 | -9/Materials | Entered Storage 1622 | -9/Storage | Lost 4 parts (1p1u2w) 1643 | -9/Storage | Identified exit to Garrison 1643 | -9/Storage | Entered Garrison 1646 | -9/Garrison | Installed Relay Interface Framework 1707 | -9/Garrison | Core integrity fell below 20% 1728 | -9/Garrison | Discovered exit to Materials (range 15) 1728 | -9/Garrison | Destroyed by G-47 Trooper with Particle Gun Last Messages --------------- 01685_ Field strength at 94. 01686_ Field strength at 88. 01687_ Field strength at 82. 01688_ Field strength at 76. 01689_ Field strength at 70. 01690_ Field strength at 64. 01691_ Field strength at 58. 01692_ Field strength at 52. 01693_ Field strength at 46. 01694_ Field strength at 40. 01695_ Field strength at 34. 01696_ Field strength at 28. 01697_ Field strength at 22. 01698_ Field strength at 16. 01699_ Field strength at 10. 01700_ Field strength at 4. 01701_ Stasis field depleted. 01710_ S-10 Pest destroyed. Garrison Door opened remotely. 01728_ EXIT=FOUND: MATERIALS Map ----- +----------------------------------------------------+ | ????????????????????????????????????????????????? | | ????????????????????????????????????????????????? | | ????????????????????????????????????????????????? | | ????????????????????????????????????????????????? | | ????????????????????????????????????????????????? | | ????????????????????????????????????????????????? | | ????????????????????????????????????????????????? | | ????????????????????????????????????????????????? | | ????????????????????????????????????????????????? | | ????????????????????????????????????????????????? | | ????????????????????????????????????????????????? | | ????????????????????????????????????????????????? | | ????????????????????????????????????????????????? | | ????????????????????????????????????????????????? | | ????????????????????????????????????????????????? | | ????????????????????????????????????????????????? | | ????????????????????????????????????????????????? | | ???????????????????????????????????##???????????? | | ??????????????????????????????????? #??????????? | | ???????????????????????????????????# #??????????? | | ???????????????????????????????????# #??????????? | | ???????????????????????????????????# #??????????? | | ???????????????????????????????????# #??????????? | | ???????????????????????????????????# #??????????? | | ????????????????####Y############### ##########?? | | ????????? @ #?? | | ????????? gs #?? | | ????????? g #?? | | ??????????< ######################## ###### #?? | | ???????????????????????????????????# #????# #?? | | ???????????????????????????????????# #????# #?? | | ???????????????????????????????????# ###### #?? | | ???????????????????????????????????# #?? | | ???????????????????????????????????######## #?? | | ??????????????????????????????????????????# #?? | | ??????????????????????????????????????????# #?? | | ??????????????????????????????????????????# #?? | | ??????????????????????????????????????????# #?? | | ??????????????????????????????????????????# ##" | | ??????????????????????????????????????????# | | ??????????????????????????????????????????# | | ??????????????????????????????????????????# | | ??????????????????????????????????????????# ## | | ??????????????????????????????????????????# ## | | ??????????????????????????????????????????" | | ??????????????????????????????????????????" | | ??????????????????????????????????????????" | | ??????????????????????????????????????????" | | ??????????????????????????????????????????# ##* | | ??????????????????????????????????????????# ## | +----------------------------------------------------+ Best States ------------- Heat Dissipation 28 Energy Generation 10 Energy Capacity 250 Matter Stores 340 Matter Capacity 350 Sight Range 16 Robot Scan Range 10 Terrain Scan Range 16 Terrain Scan Density 60 Evasion (%) 62 Item Schematics ----------------- Hcp. Matter Pod | -10/Materials | Hacked Robot Schematics ------------------ None Fabricated ------------ Nothing Alien Tech Used ----------------- None Achievements -------------- None Challenges ------------ None Game ------ Seed DefenseAccelerationCore Manual? 0 Play Time 00:19:43 Cumulative 134.0 hours Start 2019.12.01 @ 04:03:11 End 2019.12.01 @ 04:22:07 Sessions 1 Manual Loads 0 Difficulty Rogue Special Mode None Game No. 182 Rogue 171 Adventurer 11 Explorer 0 Win Type - Total 0 Types 0/0/0/0/0/0/0 Lore% 45 Gallery% 58 Achievement% 40 Wizard Run 0 Options --------- ASCII 0 Keyboard 1 Movement Numpad Keybinds 0 Fullscreen 1 Font 12/Terminus Map View 83x54 Tactical HUD 1 Map Filters NONE Filters NONE Steam 1 RUN: fda98d71-dad0-47ce-a2a1-4b88c6db6dba